[Event "Early-Titled-Tuesday-Blitz-March-05-2024"]
[Site "Chess.com"]
[Date "2024.03.05"]
[Round "7"]
[White "PeshkaCh"]
[Black "wadsy27"]
[Result "0-1"]
[WhiteElo "2819"]
[BlackElo "2630"]
[TimeControl "180+1"]
[EndTime "9:20:33 PST"]
[Termination "wadsy27 won by checkmate"]

1. e4 {[%clk 0:03:00.9]} 1... c5 {[%clk 0:02:56.4]} 2. b3 {[%clk 0:03:00.9]}
2... Nc6 {[%clk 0:02:52]} 3. Bb2 {[%clk 0:03:00.8]} 3... e5 {[%clk 0:02:52.4]}
4. Bc4 {[%clk 0:02:58]} 4... d6 {[%clk 0:02:49.8]} 5. Ne2 {[%clk 0:02:56.8]}
5... Nf6 {[%clk 0:02:45.8]} 6. d3 {[%clk 0:02:55.9]} 6... a6 {[%clk 0:02:41.8]}
7. a4 {[%clk 0:02:55.3]} 7... Be7 {[%clk 0:02:39.6]} 8. O-O {[%clk 0:02:54.1]}
8... O-O {[%clk 0:02:39.3]} 9. Nbc3 {[%clk 0:02:54.1]} 9... Be6 {[%clk
0:02:39.7]} 10. f4 {[%clk 0:02:51.3]} 10... Bxc4 {[%clk 0:02:34.2]} 11. bxc4
{[%clk 0:02:52.2]} 11... Nd4 {[%clk 0:02:11.5]} 12. Qd2 {[%clk 0:02:43.4]} 12...
Ne8 {[%clk 0:01:56.1]} 13. Nd5 {[%clk 0:02:29.4]} 13... Nc7 {[%clk 0:01:54.6]}
14. Nxc7 {[%clk 0:02:25.4]} 14... Qxc7 {[%clk 0:01:54.3]} 15. Nc3 {[%clk
0:02:24.4]} 15... Qa5 {[%clk 0:01:43.8]} 16. Qf2 {[%clk 0:02:20.8]} 16... exf4
{[%clk 0:01:08.1]} 17. Nd5 {[%clk 0:02:13.6]} 17... Bg5 {[%clk 0:01:08]} 18.
Bxd4 {[%clk 0:02:11.4]} 18... cxd4 {[%clk 0:01:06.9]} 19. h4 {[%clk 0:02:09]}
19... Bh6 {[%clk 0:01:06.1]} 20. Qxd4 {[%clk 0:02:07.4]} 20... Qd8 {[%clk
0:00:59.1]} 21. Rf3 {[%clk 0:01:52.5]} 21... Qxh4 {[%clk 0:00:49.6]} 22. Rh3
{[%clk 0:01:49.3]} 22... Qg5 {[%clk 0:00:45.3]} 23. Rf1 {[%clk 0:01:47.5]} 23...
Qe5 {[%clk 0:00:40.8]} 24. Qxe5 {[%clk 0:01:26.9]} 24... dxe5 {[%clk 0:00:41.7]}
25. Rb1 {[%clk 0:01:27.1]} 25... Rab8 {[%clk 0:00:39.3]} 26. Rb6 {[%clk
0:01:22.9]} 26... Bg5 {[%clk 0:00:38.4]} 27. Kf2 {[%clk 0:01:09.3]} 27... h6
{[%clk 0:00:35.5]} 28. Rh1 {[%clk 0:01:08.8]} 28... Bd8 {[%clk 0:00:31.3]} 29.
Rb3 {[%clk 0:01:05]} 29... f5 {[%clk 0:00:24.7]} 30. exf5 {[%clk 0:00:27.3]}
30... Rxf5 {[%clk 0:00:24.6]} 31. Kf3 {[%clk 0:00:28.2]} 31... h5 {[%clk
0:00:17.1]} 32. Rhb1 {[%clk 0:00:26.4]} 32... Rf7 {[%clk 0:00:10.8]} 33. c5
{[%clk 0:00:22.6]} 33... Rc8 {[%clk 0:00:08.3]} 34. Rxb7 {[%clk 0:00:23.2]}
34... Rxc5 {[%clk 0:00:08.4]} 35. c4 {[%clk 0:00:22.3]} 35... Bf6 {[%clk
0:00:06]} 36. Rb8+ {[%clk 0:00:16.9]} 36... Kh7 {[%clk 0:00:05.1]} 37. Rh1
{[%clk 0:00:17.4]} 37... Kg6 {[%clk 0:00:03.6]} 38. Rb6 {[%clk 0:00:17.8]} 38...
Ra5 {[%clk 0:00:03.4]} 39. Nc3 {[%clk 0:00:15.1]} 39... Kg5 {[%clk 0:00:03.8]}
40. Ne4+ {[%clk 0:00:14.8]} 40... Kg6 {[%clk 0:00:04.2]} 41. g4 {[%clk
0:00:10.5]} 41... fxg3 {[%clk 0:00:03.7]} 42. Nxg3 {[%clk 0:00:09.9]} 42... Rxa4
{[%clk 0:00:03.8]} 43. Nxh5 {[%clk 0:00:09.9]} 43... Ra3 {[%clk 0:00:04.3]} 44.
Ke4 {[%clk 0:00:10.1]} 44... Rd7 {[%clk 0:00:03.9]} 45. Rh3 {[%clk 0:00:08.8]}
45... Rd4+ {[%clk 0:00:03.6]} 46. Kf3 {[%clk 0:00:06.8]} 46... Rdxd3+ {[%clk
0:00:04]} 47. Ke4 {[%clk 0:00:06]} 47... Rxh3 {[%clk 0:00:04.6]} 48. Nxf6 {[%clk
0:00:06.6]} 48... gxf6 {[%clk 0:00:04.8]} 49. c5 {[%clk 0:00:06]} 49... Rhe3+
{[%clk 0:00:05.2]} 50. Kd5 {[%clk 0:00:06.3]} 50... Red3+ {[%clk 0:00:05.7]} 51.
Ke6 {[%clk 0:00:07]} 51... Rac3 {[%clk 0:00:05.9]} 52. c6 {[%clk 0:00:07.4]}
52... e4 {[%clk 0:00:06.5]} 53. Ke7 {[%clk 0:00:04.5]} 53... e3 {[%clk
0:00:06.6]} 54. c7 {[%clk 0:00:04.9]} 54... Rxc7+ {[%clk 0:00:06.7]} 55. Ke6
{[%clk 0:00:05.4]} 55... e2 {[%clk 0:00:06.6]} 56. Rb1 {[%clk 0:00:03.9]} 56...
Re3+ {[%clk 0:00:06.9]} 57. Kd6 {[%clk 0:00:04]} 57... e1=Q {[%clk 0:00:07.5]}
58. Rc1 {[%clk 0:00:03.3]} 58... Qxc1 {[%clk 0:00:06.7]} 59. Kd5 {[%clk
0:00:03]} 59... Qd2# {[%clk 0:00:07.4]} 0-1

[Event "Early-Titled-Tuesday-Blitz-March-05-2024"]
[Site "Chess.com"]
[Date "2024.03.05"]
[Round "7"]
[White "marik_spb"]
[Black "tylityli"]
[Result "1-0"]
[WhiteElo "2445"]
[BlackElo "2302"]
[TimeControl "180+1"]
[EndTime "9:20:34 PST"]
[Termination "marik_spb won on time"]

1. e4 {[%clk 0:02:59.3]} 1... e5 {[%clk 0:02:59.7]} 2. Nf3 {[%clk 0:02:59.1]}
2... Nc6 {[%clk 0:03:00.1]} 3. Bc4 {[%clk 0:02:59.4]} 3... Nf6 {[%clk
0:02:59.7]} 4. d3 {[%clk 0:02:57.2]} 4... Be7 {[%clk 0:02:59.6]} 5. O-O {[%clk
0:02:56.6]} 5... O-O {[%clk 0:03:00.5]} 6. h3 {[%clk 0:02:49.8]} 6... d5 {[%clk
0:03:00.4]} 7. exd5 {[%clk 0:02:48.2]} 7... Nxd5 {[%clk 0:03:01.3]} 8. Re1
{[%clk 0:02:45.2]} 8... Nb6 {[%clk 0:02:56.2]} 9. Bb3 {[%clk 0:02:43.5]} 9...
Bd6 {[%clk 0:02:49.3]} 10. Nc3 {[%clk 0:02:41.7]} 10... h6 {[%clk 0:02:47.8]}
11. Be3 {[%clk 0:02:37.5]} 11... Kh7 {[%clk 0:02:45.4]} 12. Ne4 {[%clk
0:02:36.9]} 12... f5 {[%clk 0:02:44.4]} 13. Nxd6 {[%clk 0:02:26.1]} 13... cxd6
{[%clk 0:02:44.1]} 14. Bxb6 {[%clk 0:02:10.9]} 14... Qxb6 {[%clk 0:02:36.5]} 15.
d4 {[%clk 0:02:00.5]} 15... e4 {[%clk 0:02:32.9]} 16. d5 {[%clk 0:02:00.8]}
16... exf3 {[%clk 0:02:22.1]} 17. dxc6 {[%clk 0:02:01.7]} 17... fxg2 {[%clk
0:02:18.5]} 18. Qxd6 {[%clk 0:02:01]} 18... Qd8 {[%clk 0:01:55.4]} 19. Qxd8
{[%clk 0:01:56.3]} 19... Rxd8 {[%clk 0:01:54.8]} 20. c7 {[%clk 0:01:41.9]} 20...
Rd7 {[%clk 0:01:50.8]} 21. Re8 {[%clk 0:01:34.3]} 21... Rxc7 {[%clk 0:01:49.6]}
22. Rd1 {[%clk 0:01:25]} 22... b6 {[%clk 0:01:36.1]} 23. Rd6 {[%clk 0:01:10.9]}
23... Bb7 {[%clk 0:01:31.6]} 24. Bg8+ {[%clk 0:01:10.6]} 24... Kh8 {[%clk
0:01:29.7]} 25. Rxa8 {[%clk 0:01:11.2]} 25... Bxa8 {[%clk 0:01:27]} 26. Rd8
{[%clk 0:01:09.1]} 26... Be4 {[%clk 0:01:17.6]} 27. c3 {[%clk 0:01:01.1]} 27...
g5 {[%clk 0:01:12]} 28. f3 {[%clk 0:00:55.3]} 28... Bb1 {[%clk 0:01:03.1]} 29.
Kxg2 {[%clk 0:00:55.6]} 29... Kg7 {[%clk 0:01:01]} 30. Bb3 {[%clk 0:00:54]}
30... f4 {[%clk 0:00:46.7]} 31. a4 {[%clk 0:00:49.9]} 31... Bg6 {[%clk
0:00:39.2]} 32. h4 {[%clk 0:00:45.5]} 32... Re7 {[%clk 0:00:34]} 33. hxg5 {[%clk
0:00:40.5]} 33... hxg5 {[%clk 0:00:33.9]} 34. Kf2 {[%clk 0:00:40]} 34... Kf6
{[%clk 0:00:29]} 35. Rd6+ {[%clk 0:00:38]} 35... Kg7 {[%clk 0:00:29]} 36. Bc4
{[%clk 0:00:31.8]} 36... Bf5 {[%clk 0:00:26.4]} 37. a5 {[%clk 0:00:30.1]} 37...
bxa5 {[%clk 0:00:23.6]} 38. Rd5 {[%clk 0:00:29.9]} 38... Kf6 {[%clk 0:00:21.3]}
39. Rxa5 {[%clk 0:00:29]} 39... Rd7 {[%clk 0:00:15.9]} 40. Ke2 {[%clk
0:00:25.4]} 40... g4 {[%clk 0:00:15]} 41. fxg4 {[%clk 0:00:07.2]} 41... Bxg4+
{[%clk 0:00:14.8]} 42. Ke1 {[%clk 0:00:07.7]} 42... f3 {[%clk 0:00:14.7]} 43.
Kf2 {[%clk 0:00:04.4]} 43... Rd2+ {[%clk 0:00:12.6]} 44. Kg3 {[%clk 0:00:04.9]}
44... Rg2+ {[%clk 0:00:09]} 45. Kf4 {[%clk 0:00:05.3]} 45... f2 {[%clk 0:00:09]}
46. Rxa7 {[%clk 0:00:05.3]} 46... Rg1 {[%clk 0:00:07.1]} 47. Ra6+ {[%clk
0:00:04.6]} 47... Ke7 {[%clk 0:00:06.5]} 48. Rg6 {[%clk 0:00:03.2]} 48... f1=Q+
{[%clk 0:00:05.5]} 49. Bxf1 {[%clk 0:00:03.3]} 49... Rxf1+ {[%clk 0:00:05.8]}
50. Kxg4 {[%clk 0:00:04]} 50... Rb1 {[%clk 0:00:05.2]} 51. Rb6 {[%clk
0:00:04.6]} 1-0

[Event "Early-Titled-Tuesday-Blitz-March-05-2024"]
[Site "Chess.com"]
[Date "2024.03.05"]
[Round "7"]
[White "ChessBliss09"]
[Black "Penafiel-Josselyne02"]
[Result "1-0"]
[WhiteElo "2196"]
[BlackElo "2048"]
[TimeControl "180+1"]
[EndTime "9:20:34 PST"]
[Termination "ChessBliss09 won by resignation"]

1. c4 {[%clk 0:03:00.9]} 1... Nf6 {[%clk 0:02:58.9]} 2. Nc3 {[%clk 0:03:00.9]}
2... g6 {[%clk 0:02:51]} 3. g3 {[%clk 0:02:59.6]} 3... Bg7 {[%clk 0:02:50.6]} 4.
Bg2 {[%clk 0:02:59.8]} 4... O-O {[%clk 0:02:49.7]} 5. Nf3 {[%clk 0:02:59.9]}
5... d6 {[%clk 0:02:49.8]} 6. d4 {[%clk 0:02:59.6]} 6... Nbd7 {[%clk 0:02:49]}
7. O-O {[%clk 0:02:59]} 7... e5 {[%clk 0:02:49.1]} 8. dxe5 {[%clk 0:02:59.1]}
8... dxe5 {[%clk 0:02:49.5]} 9. e4 {[%clk 0:02:59.6]} 9... c6 {[%clk 0:02:49.8]}
10. b3 {[%clk 0:02:58.4]} 10... a5 {[%clk 0:02:50]} 11. Bb2 {[%clk 0:02:58.5]}
11... Qc7 {[%clk 0:02:50.5]} 12. Rc1 {[%clk 0:02:58.1]} 12... Re8 {[%clk
0:02:47.3]} 13. Ba3 {[%clk 0:02:57.3]} 13... Bf8 {[%clk 0:02:30.7]} 14. Bb2
{[%clk 0:02:52.8]} 14... Nc5 {[%clk 0:02:26.8]} 15. Qe2 {[%clk 0:02:49.2]} 15...
Bg4 {[%clk 0:02:22.1]} 16. h3 {[%clk 0:02:44.9]} 16... Bxf3 {[%clk 0:02:22.2]}
17. Bxf3 {[%clk 0:02:45.8]} 17... Rad8 {[%clk 0:02:22.2]} 18. Rfd1 {[%clk
0:02:43.8]} 18... Ne6 {[%clk 0:02:14.8]} 19. Bg2 {[%clk 0:02:36.6]} 19... Nd4
{[%clk 0:02:13.7]} 20. Qe1 {[%clk 0:02:22.2]} 20... Bh6 {[%clk 0:02:02.4]} 21.
Rb1 {[%clk 0:02:13.6]} 21... Qc8 {[%clk 0:01:59.5]} 22. Ne2 {[%clk 0:02:11]}
22... Nxe2+ {[%clk 0:01:09.5]} 23. Qxe2 {[%clk 0:02:11.9]} 23... Nd7 {[%clk
0:01:06.8]} 24. Qe1 {[%clk 0:01:55.9]} 24... b6 {[%clk 0:01:03]} 25. Bc1 {[%clk
0:01:39.2]} 25... Bg7 {[%clk 0:00:56.9]} 26. Be3 {[%clk 0:01:35.5]} 26... Qc7
{[%clk 0:00:41.1]} 27. Qc3 {[%clk 0:01:22.1]} 27... Nf8 {[%clk 0:00:39.7]} 28.
h4 {[%clk 0:01:05.8]} 28... Ne6 {[%clk 0:00:37.2]} 29. h5 {[%clk 0:00:54.5]}
29... Nd4 {[%clk 0:00:36.8]} 30. Bxd4 {[%clk 0:00:52.8]} 30... exd4 {[%clk
0:00:37.7]} 31. Qf3 {[%clk 0:00:50.6]} 31... Qe5 {[%clk 0:00:33.3]} 32. hxg6
{[%clk 0:00:45.2]} 32... hxg6 {[%clk 0:00:34.2]} 33. Rd3 {[%clk 0:00:41.4]}
33... c5 {[%clk 0:00:31.4]} 34. Re1 {[%clk 0:00:37.7]} 34... Bh6 {[%clk
0:00:30.9]} 35. Qg4 {[%clk 0:00:35.2]} 35... Kg7 {[%clk 0:00:19.8]} 36. f4
{[%clk 0:00:34.4]} 36... f5 {[%clk 0:00:15.7]} 37. Qxg6+ {[%clk 0:00:25.6]}
37... Kxg6 {[%clk 0:00:15.4]} 38. fxe5 {[%clk 0:00:25.7]} 38... Rxe5 {[%clk
0:00:14.4]} 39. exf5+ {[%clk 0:00:25.9]} 39... Kxf5 {[%clk 0:00:14.9]} 40. Bh3+
{[%clk 0:00:23.9]} 40... Kf6 {[%clk 0:00:14.6]} 41. Rf3+ {[%clk 0:00:24.1]}
41... Kg6 {[%clk 0:00:08.2]} 42. Rxe5 {[%clk 0:00:23.4]} 42... d3 {[%clk
0:00:08.7]} 43. Rd5 {[%clk 0:00:17]} 43... Rxd5 {[%clk 0:00:03.9]} 44. cxd5
{[%clk 0:00:17]} 44... d2 {[%clk 0:00:04.4]} 45. Rd3 {[%clk 0:00:13.8]} 45...
Be3+ {[%clk 0:00:04.7]} 46. Kg2 {[%clk 0:00:12.4]} 46... Kg5 {[%clk 0:00:05.2]}
47. Kf3 {[%clk 0:00:12.2]} 47... d1=Q+ {[%clk 0:00:03.8]} 48. Rxd1 {[%clk
0:00:11.9]} 48... Bd4 {[%clk 0:00:02.9]} 49. d6 {[%clk 0:00:12]} 49... Bf6
{[%clk 0:00:03.2]} 50. d7 {[%clk 0:00:11.8]} 50... Bd8 {[%clk 0:00:04.1]} 51.
Rd6 {[%clk 0:00:10.3]} 51... b5 {[%clk 0:00:02.9]} 52. Rc6 {[%clk 0:00:08.4]}
52... Be7 {[%clk 0:00:02.1]} 53. Rc8 {[%clk 0:00:08]} 53... c4 {[%clk
0:00:02.8]} 54. bxc4 {[%clk 0:00:07.1]} 54... bxc4 {[%clk 0:00:03.4]} 55. d8=Q
{[%clk 0:00:07.8]} 55... Bxd8 {[%clk 0:00:03.6]} 56. Rxd8 {[%clk 0:00:08.7]}
56... c3 {[%clk 0:00:03.6]} 57. Rc8 {[%clk 0:00:09.6]} 57... a4 {[%clk
0:00:02.4]} 58. Rxc3 {[%clk 0:00:08.9]} 58... a3 {[%clk 0:00:03.2]} 59. Rxa3
{[%clk 0:00:09.5]} 59... Kf6 {[%clk 0:00:03.3]} 60. Rb3 {[%clk 0:00:10.4]} 60...
Ke7 {[%clk 0:00:03.1]} 61. a4 {[%clk 0:00:11.3]} 61... Kd6 {[%clk 0:00:03.5]}
62. a5 {[%clk 0:00:12.2]} 62... Ke5 {[%clk 0:00:03.3]} 63. a6 {[%clk 0:00:13.1]}
63... Kd6 {[%clk 0:00:03.7]} 64. a7 {[%clk 0:00:13.3]} 1-0

[Event "Early-Titled-Tuesday-Blitz-March-05-2024"]
[Site "Chess.com"]
[Date "2024.03.05"]
[Round "7"]
[White "wonderfultime"]
[Black "MagnusCarlsen"]
[Result "0-1"]
[WhiteElo "3040"]
[BlackElo "3278"]
[TimeControl "180+1"]
[EndTime "9:20:38 PST"]
[Termination "MagnusCarlsen won by resignation"]

1. d4 {[%clk 0:03:00.9]} 1... g6 {[%clk 0:02:56.1]} 2. e4 {[%clk 0:03:00.9]}
2... d6 {[%clk 0:02:54.2]} 3. Bc4 {[%clk 0:03:00.3]} 3... Nf6 {[%clk 0:02:54.2]}
4. Qe2 {[%clk 0:02:55.6]} 4... Nc6 {[%clk 0:02:54.1]} 5. c3 {[%clk 0:02:51.5]}
5... e5 {[%clk 0:02:53.9]} 6. dxe5 {[%clk 0:02:50.3]} 6... Nxe5 {[%clk
0:02:53.7]} 7. Bb3 {[%clk 0:02:47.1]} 7... Bg7 {[%clk 0:02:50.7]} 8. Nf3 {[%clk
0:02:28.2]} 8... Bg4 {[%clk 0:02:49.7]} 9. Bg5 {[%clk 0:01:44.1]} 9... O-O
{[%clk 0:02:12.1]} 10. Nbd2 {[%clk 0:01:43.1]} 10... Qe8 {[%clk 0:02:06]} 11.
Bxf6 {[%clk 0:01:20.2]} 11... Bxf6 {[%clk 0:02:05.2]} 12. h3 {[%clk 0:01:17.7]}
12... Nxf3+ {[%clk 0:02:04.2]} 13. Nxf3 {[%clk 0:01:17.7]} 13... Bd7 {[%clk
0:02:04.1]} 14. O-O {[%clk 0:01:14.7]} 14... Qe7 {[%clk 0:02:02.7]} 15. Rfe1
{[%clk 0:01:14.9]} 15... Rfe8 {[%clk 0:01:58.8]} 16. Rad1 {[%clk 0:01:15.1]}
16... Rad8 {[%clk 0:01:57.5]} 17. Qe3 {[%clk 0:01:13.7]} 17... a5 {[%clk
0:01:57.7]} 18. a4 {[%clk 0:01:03.3]} 18... Bc6 {[%clk 0:01:54.1]} 19. Qf4
{[%clk 0:00:59.2]} 19... Kg7 {[%clk 0:01:49.7]} 20. Nd4 {[%clk 0:00:59.6]} 20...
Bd7 {[%clk 0:01:45.6]} 21. Qf3 {[%clk 0:00:51.6]} 21... c6 {[%clk 0:01:39.6]}
22. Nc2 {[%clk 0:00:51.1]} 22... Bc8 {[%clk 0:01:29.6]} 23. Qg3 {[%clk
0:00:45.9]} 23... Qc7 {[%clk 0:01:15.4]} 24. Qf3 {[%clk 0:00:46.1]} 24... h5
{[%clk 0:01:06.1]} 25. Nd4 {[%clk 0:00:41.9]} 25... h4 {[%clk 0:01:04.5]} 26.
Bc4 {[%clk 0:00:41.5]} 26... Qe7 {[%clk 0:01:03]} 27. Nc2 {[%clk 0:00:37.6]}
27... Qe5 {[%clk 0:00:57.3]} 28. Bb3 {[%clk 0:00:33.3]} 28... Qc5 {[%clk
0:00:50.6]} 29. Qe3 {[%clk 0:00:31.4]} 29... Qxe3 {[%clk 0:00:47.2]} 30. Rxe3
{[%clk 0:00:32.3]} 30... Be5 {[%clk 0:00:42.7]} 31. Ree1 {[%clk 0:00:30.6]}
31... f5 {[%clk 0:00:36.6]} 32. exf5 {[%clk 0:00:26.6]} 32... gxf5 {[%clk
0:00:37.5]} 33. Ne3 {[%clk 0:00:22.9]} 33... d5 {[%clk 0:00:34.4]} 34. Nf1
{[%clk 0:00:22.4]} 34... Bf6 {[%clk 0:00:26.4]} 35. Nh2 {[%clk 0:00:18.3]} 35...
Rxe1+ {[%clk 0:00:25.6]} 36. Rxe1 {[%clk 0:00:19.2]} 36... d4 {[%clk 0:00:24.8]}
37. Rd1 {[%clk 0:00:14.5]} 37... dxc3 {[%clk 0:00:24.7]} 38. Rxd8 {[%clk
0:00:15.4]} 38... Bxd8 {[%clk 0:00:23.7]} 39. bxc3 {[%clk 0:00:16.2]} 39... b5
{[%clk 0:00:24.1]} 40. Nf3 {[%clk 0:00:15.9]} 40... Bf6 {[%clk 0:00:24.7]} 41.
Kf1 {[%clk 0:00:14.4]} 41... Bxc3 {[%clk 0:00:18.5]} 42. Nxh4 {[%clk 0:00:14.1]}
42... Kf6 {[%clk 0:00:16.9]} 43. Ke2 {[%clk 0:00:13.7]} 43... Ba6 {[%clk
0:00:17]} 44. Kd1 {[%clk 0:00:13.5]} 44... b4 {[%clk 0:00:15.6]} 45. g4 {[%clk
0:00:11.8]} 45... fxg4 {[%clk 0:00:13.2]} 46. hxg4 {[%clk 0:00:12.7]} 46... c5
{[%clk 0:00:13]} 47. f4 {[%clk 0:00:13.4]} 47... c4 {[%clk 0:00:13.5]} 48. g5+
{[%clk 0:00:13.8]} 48... Ke7 {[%clk 0:00:12.8]} 49. Bc2 {[%clk 0:00:14.3]} 49...
b3 {[%clk 0:00:13.2]} 50. Be4 {[%clk 0:00:13.1]} 50... Bc8 {[%clk 0:00:08.9]}
51. Nf5+ {[%clk 0:00:13.8]} 51... Bxf5 {[%clk 0:00:07.2]} 52. Bxf5 {[%clk
0:00:14.4]} 52... Kd6 {[%clk 0:00:07.5]} 53. g6 {[%clk 0:00:12.6]} 53... Kc5
{[%clk 0:00:07.3]} 54. Be6 {[%clk 0:00:09.4]} 54... Kb4 {[%clk 0:00:06.7]} 55.
Kc1 {[%clk 0:00:08.8]} 55... Bf6 {[%clk 0:00:06.8]} 56. Bf5 {[%clk 0:00:05.8]}
56... c3 {[%clk 0:00:07.1]} 0-1

[Event "Early-Titled-Tuesday-Blitz-March-05-2024"]
[Site "Chess.com"]
[Date "2024.03.05"]
[Round "7"]
[White "volodja49"]
[Black "wild3000"]
[Result "1/2-1/2"]
[WhiteElo "2600"]
[BlackElo "2492"]
[TimeControl "180+1"]
[EndTime "9:20:40 PST"]
[Termination "Game drawn - insufficient material"]

1. d4 {[%clk 0:02:56.4]} 1... Nf6 {[%clk 0:02:59.7]} 2. c4 {[%clk 0:02:55.7]}
2... e6 {[%clk 0:02:59.7]} 3. Nc3 {[%clk 0:02:56.6]} 3... d5 {[%clk 0:02:59]} 4.
Bg5 {[%clk 0:02:55.4]} 4... Be7 {[%clk 0:02:59]} 5. cxd5 {[%clk 0:02:53.9]} 5...
Nxd5 {[%clk 0:02:58.1]} 6. Bxe7 {[%clk 0:02:54.8]} 6... Nxe7 {[%clk 0:02:54.9]}
7. Rc1 {[%clk 0:02:51.7]} 7... O-O {[%clk 0:02:54.4]} 8. Nf3 {[%clk 0:02:52.4]}
8... Nd7 {[%clk 0:02:53.7]} 9. e3 {[%clk 0:02:53.3]} 9... c5 {[%clk 0:02:53.5]}
10. Be2 {[%clk 0:02:39.8]} 10... cxd4 {[%clk 0:02:51.3]} 11. Nxd4 {[%clk
0:02:40.7]} 11... a6 {[%clk 0:02:49.9]} 12. O-O {[%clk 0:02:39.8]} 12... Nf6
{[%clk 0:02:44.1]} 13. Bf3 {[%clk 0:02:36.4]} 13... Rb8 {[%clk 0:02:44]} 14. Qb3
{[%clk 0:02:28.5]} 14... b5 {[%clk 0:02:39.4]} 15. Rfd1 {[%clk 0:02:28.8]} 15...
Qb6 {[%clk 0:02:38.3]} 16. Qb4 {[%clk 0:02:19.6]} 16... Qa7 {[%clk 0:02:20.3]}
17. Qa5 {[%clk 0:02:08.6]} 17... Qb6 {[%clk 0:02:08]} 18. Qxb6 {[%clk
0:02:01.2]} 18... Rxb6 {[%clk 0:02:08.1]} 19. b4 {[%clk 0:02:02.1]} 19... Bb7
{[%clk 0:02:01.9]} 20. a3 {[%clk 0:01:44.3]} 20... Bxf3 {[%clk 0:01:58.1]} 21.
Nxf3 {[%clk 0:01:45.2]} 21... Ned5 {[%clk 0:01:53.9]} 22. Nxd5 {[%clk
0:01:41.7]} 22... Nxd5 {[%clk 0:01:54.8]} 23. Ne5 {[%clk 0:01:42.2]} 23... Ra8
{[%clk 0:01:51.1]} 24. e4 {[%clk 0:01:35.3]} 24... Nf6 {[%clk 0:01:47.4]} 25. f3
{[%clk 0:01:34.2]} 25... g5 {[%clk 0:01:41.5]} 26. Rc7 {[%clk 0:01:32.2]} 26...
Rf8 {[%clk 0:01:33.3]} 27. Kf2 {[%clk 0:01:30.5]} 27... h5 {[%clk 0:01:32.8]}
28. Kg3 {[%clk 0:01:26.8]} 28... Kg7 {[%clk 0:01:27.3]} 29. h4 {[%clk
0:01:25.2]} 29... gxh4+ {[%clk 0:01:22.1]} 30. Kxh4 {[%clk 0:01:26.1]} 30... a5
{[%clk 0:01:16.7]} 31. Rc6 {[%clk 0:00:55]} 31... Rxc6 {[%clk 0:01:14.6]} 32.
Nxc6 {[%clk 0:00:55.9]} 32... axb4 {[%clk 0:01:15.1]} 33. axb4 {[%clk
0:00:55.7]} 33... Rc8 {[%clk 0:01:05.2]} 34. Ne5 {[%clk 0:00:52.2]} 34... Rc2
{[%clk 0:01:00.3]} 35. g3 {[%clk 0:00:45.8]} 35... Rb2 {[%clk 0:00:44.7]} 36.
Rd4 {[%clk 0:00:34.4]} 36... Rh2+ {[%clk 0:00:35.9]} 37. Kg5 {[%clk 0:00:33.9]}
37... Rg2 {[%clk 0:00:23.7]} 38. Kf4 {[%clk 0:00:32.4]} 38... Rb2 {[%clk
0:00:19.3]} 39. Nd3 {[%clk 0:00:30.4]} 39... Rb1 {[%clk 0:00:16.6]} 40. Nc5
{[%clk 0:00:28.9]} 40... Nh7 {[%clk 0:00:14.6]} 41. Rd7 {[%clk 0:00:27.5]} 41...
Nf8 {[%clk 0:00:14.4]} 42. Rd4 {[%clk 0:00:24.5]} 42... Ng6+ {[%clk 0:00:13.4]}
43. Ke3 {[%clk 0:00:24.1]} 43... e5 {[%clk 0:00:13.7]} 44. Rd7 {[%clk 0:00:23]}
44... Rxb4 {[%clk 0:00:13.1]} 45. Ne6+ {[%clk 0:00:23.2]} 45... Kf6 {[%clk
0:00:13.3]} 46. Nc5 {[%clk 0:00:22.9]} 46... Rc4 {[%clk 0:00:13.1]} 47. Nd3
{[%clk 0:00:22.7]} 47... Kg7 {[%clk 0:00:10.1]} 48. f4 {[%clk 0:00:23.6]} 48...
exf4+ {[%clk 0:00:09.7]} 49. gxf4 {[%clk 0:00:23.5]} 49... h4 {[%clk 0:00:09.9]}
50. f5 {[%clk 0:00:23.3]} 50... Nf8 {[%clk 0:00:09.3]} 51. Ra7 {[%clk
0:00:21.5]} 51... h3 {[%clk 0:00:08.7]} 52. Ra1 {[%clk 0:00:22.4]} 52... b4
{[%clk 0:00:07.7]} 53. Rg1+ {[%clk 0:00:19.5]} 53... Kf6 {[%clk 0:00:06.7]} 54.
Rh1 {[%clk 0:00:18.1]} 54... Nd7 {[%clk 0:00:06.3]} 55. Rxh3 {[%clk 0:00:18.6]}
55... b3 {[%clk 0:00:06.6]} 56. Rh2 {[%clk 0:00:17.4]} 56... Rc2 {[%clk
0:00:06.3]} 57. Rxc2 {[%clk 0:00:17.6]} 57... bxc2 {[%clk 0:00:07.2]} 58. Kd2
{[%clk 0:00:18.2]} 58... Ne5 {[%clk 0:00:07.1]} 59. Nc5 {[%clk 0:00:17.5]} 59...
Ng4 {[%clk 0:00:05.7]} 60. Kxc2 {[%clk 0:00:17.8]} 60... Nf2 {[%clk 0:00:05.9]}
61. Kc3 {[%clk 0:00:16]} 61... Nxe4+ {[%clk 0:00:05.9]} 62. Nxe4+ {[%clk
0:00:16.9]} 62... Kxf5 {[%clk 0:00:06.7]} 63. Kd4 {[%clk 0:00:17.6]} 63... Kf4
{[%clk 0:00:07]} 64. Nd6 {[%clk 0:00:16.8]} 64... f5 {[%clk 0:00:07.9]} 65. Kd5
{[%clk 0:00:17.4]} 65... Kg5 {[%clk 0:00:08.8]} 66. Ke5 {[%clk 0:00:17.7]} 66...
Kg4 {[%clk 0:00:09.7]} 67. Nf7 {[%clk 0:00:17.4]} 67... Kf3 {[%clk 0:00:10.6]}
68. Nh6 {[%clk 0:00:17.9]} 68... Ke2 {[%clk 0:00:11.5]} 69. Nxf5 {[%clk
0:00:18.7]} 1/2-1/2